fUSD/lending_fUSD_20240317
["ID","MTS","AMOUNT","RATE_DAILY","PERIOD"]
[319399331,1710711178863,-577.59,0.0001863,2]
[319399332,1710711178873,-2253.12,0.0001863,2]
[319399333,1710711178882,-2253.12,0.0001863,2]
[319399334,1710711178891,-2253.12,0.0001863,2]
[319399335,1710711178901,-14210.26,0.0001863,2]
[319399336,1710711178910,-11224.59,0.0001863,2]
[319399337,1710711178919,-10989.548,0.0001863,2]
[319399338,1710711178928,-11078.138,0.0001863,2]
[319399339,1710711178937,-155.0,0.00018657,2]
[319399340,1710711178947,-471.0,0.00018657,2]
[319399341,1710711178957,-191.89,0.00018681,10]
[319399342,1710711178967,-155.0,0.00018685,2]
[319399343,1710711178979,-471.0,0.00018685,2]
[319399344,1710711178988,-151.37997203,0.00018688,2]
[319399345,1710711178997,-57650.57857842,0.000187,2]
[319399346,1710711179006,-707.0,0.000187,2]
[319399347,1710711179016,-155.0,0.00018712,2]
[319399348,1710711179025,-471.0,0.00018712,2]
[319399349,1710711179035,-156.51853804,0.00018713,2]
[319399350,1710711179045,-155.0,0.0001874,2]
[319399351,1710711179055,-471.0,0.0001874,2]
[319399352,1710711179064,-155.0,0.00018767,2]
[319399353,1710711179075,-471.0,0.00018767,2]
[319399354,1710711179084,-287.70140034,0.00018792,2]
[319399355,1710711179093,-155.0,0.00018794,2]
[319399356,1710711179103,-471.0,0.00018794,2]
[319399357,1710711179113,-10000.81040486,0.000188,2]
[319399358,1710711179122,-6910.34411375,0.0001881,2]
[319399359,1710711179132,-2000.0,0.00018816,2]
[319399360,1710711179141,-200.0,0.00018816,2]
[319399361,1710711179151,-2000.0,0.00018816,2]
[319399362,1710711179160,-200.0,0.00018816,2]
[319399363,1710711179170,-2000.0,0.00018816,2]
[319399364,1710711179180,-200.0,0.00018816,2]
[319399365,1710711179190,-2000.0,0.00018816,2]
[319399366,1710711179199,-200.0,0.00018816,2]
[319399367,1710711179208,-157.0,0.00018822,2]
[319399368,1710711179217,-471.0,0.00018822,2]
[319399369,1710711179227,-471.0,0.00018849,2]
[319399370,1710711179236,-151.30766298,0.00018852,2]
[319399371,1710711179245,-287.70140034,0.00018875,2]
[319399372,1710711179255,-471.0,0.00018877,2]
[319399373,1710711179264,-44418.90241981,0.00018899,2]
[319399374,1710711179273,-296.71847077,0.000189,2]
[319399375,1710711179282,-484.0,0.00018904,2]
[319399376,1710711179291,-210.0,0.00018946,2]
[319399377,1710711179301,-3830579.65663233,0.00018996,3]
[319399378,1710711179310,-107527.22935767,0.00018999,2]
[319399379,1710711179320,-189.8576146,0.00019,2]
[319399380,1710711179329,-894.5360447,0.00019,2]
[319399381,1710711179338,-97451.06135736,0.00019,3]
[319399382,1710711179348,-1600.0,0.00019,4]
[319399383,1710711179357,-1650.0,0.00019,3]
[319399384,1710711179366,-2000.0,0.00019004,2]
[319399385,1710711179376,-200.0,0.00019004,2]
[319399386,1710711179385,-2000.0,0.00019004,2]
[319399387,1710711179394,-200.0,0.00019004,2]
[319399388,1710711179403,-2000.0,0.00019004,2]
[319399389,1710711179414,-200.0,0.00019004,2]
[319399390,1710711179423,-2000.0,0.00019004,2]
[319399391,1710711179432,-200.0,0.00019004,2]
[319399392,1710711179442,-1391.2102796,0.00019059,2]
[319399393,1710711179451,-383.79359025,0.00019178,2]
[319399394,1710711179461,-500.0,0.00019178,2]
[319399395,1710711179470,-380.76854352,0.00019178,2]
[319399396,1710711179485,-500.0,0.00019178,2]
[319399397,1710711179495,-301.68957169,0.00019178,2]
[319399398,1710711179504,-362.83450165,0.00019178,2]
[319399399,1710711179513,-507.34611164,0.00019178,2]
[319399400,1710711179523,-500.0,0.00019178,2]
[319399401,1710711179532,-501.98548136,0.00019178,2]
[319399402,1710711179541,-500.0,0.00019178,2]
[319399403,1710711179550,-500.0,0.00019178,2]
[319399404,1710711179559,-500.0,0.00019178,2]
[319399405,1710711179570,-500.0,0.00019178,2]
[319399406,1710711179579,-500.0,0.00019178,2]
[319399407,1710711179588,-500.0,0.00019178,2]
[319399408,1710711179597,-500.0,0.00019178,2]
[319399409,1710711179607,-500.0,0.00019178,2]
[319399410,1710711179616,-500.0,0.00019178,2]
[319399411,1710711179626,-408.50268834,0.00019178,2]
[319399412,1710711179635,-500.0,0.00019178,2]
[319399413,1710711179644,-500.0,0.00019178,2]
[319399414,1710711179654,-500.0,0.00019178,2]
[319399415,1710711179663,-500.0,0.00019178,2]
[319399416,1710711179672,-500.0,0.00019178,2]
[319399417,1710711179681,-500.0,0.00019178,2]
[319399418,1710711179690,-500.0,0.00019178,2]
[319399419,1710711179699,-500.0,0.00019178,2]
[319399420,1710711179709,-500.0,0.00019178,2]
[319399421,1710711179718,-500.0,0.00019178,2]
[319399422,1710711179727,-499.99999999,0.00019178,2]
[319399423,1710711179736,-1231.61079967,0.00019178,2]
[319399424,1710711179746,-1231.61079967,0.00019178,2]
[319399425,1710711179755,-1231.61079967,0.00019178,2]
[319399426,1710711179764,-1231.61079967,0.00019178,2]
[319399427,1710711179773,-1231.61079967,0.00019178,2]
[319399428,1710711179782,-1231.61079967,0.00019178,2]
[319399429,1710711179792,-1231.61079967,0.00019178,2]
[319399430,1710711179801,-1231.61079967,0.00019178,2]
[319399431,1710711179811,-1231.61079967,0.00019178,2]
[319399432,1710711179821,-500.0,0.00019178,2]
[319399433,1710711179830,-1231.61079967,0.00019178,2]
[319399434,1710711179839,-500.0,0.00019178,2]
[319399435,1710711179848,-1231.61079967,0.00019178,2]
[319399436,1710711179857,-500.0,0.00019178,2]
[319399437,1710711179866,-616.08239894,0.00019178,2]
[319399438,1710711179875,-1231.61079967,0.00019178,2]
[319399439,1710711179885,-500.0,0.00019178,2]
[319399440,1710711179894,-1231.61079967,0.00019178,2]
[319399441,1710711179903,-500.0,0.00019178,2]
[319399442,1710711179912,-500.0,0.00019178,2]
[319399443,1710711179922,-1231.61079967,0.00019178,2]
[319399444,1710711179931,-500.0,0.00019178,2]
[319399445,1710711179940,-1231.61079967,0.00019178,2]
[319399446,1710711179949,-500.0,0.00019178,2]
[319399447,1710711179962,-500.0,0.00019178,2]
[319399448,1710711179973,-1231.61079967,0.00019178,2]
[319399449,1710711179983,-500.0,0.00019178,2]
[319399450,1710711179993,-1231.61079967,0.00019178,2]
[319399451,1710711180003,-500.0,0.00019178,2]
[319399452,1710711180012,-1231.61079967,0.00019178,2]
[319399453,1710711180022,-500.0,0.00019178,2]
[319399454,1710711180031,-1231.61079967,0.00019178,2]
[319399455,1710711180041,-500.0,0.00019178,2]
[319399456,1710711180052,-500.0,0.00019178,2]
[319399457,1710711180062,-1231.61079967,0.00019178,2]
[319399458,1710711180071,-500.0,0.00019178,2]
[319399459,1710711180081,-1231.61079967,0.00019178,2]
[319399460,1710711180090,-1231.61079967,0.00019178,2]
[319399461,1710711180102,-1231.61079967,0.00019178,2]
[319399462,1710711180111,-1231.61079967,0.00019178,2]
[319399463,1710711180120,-1231.61079967,0.00019178,2]
[319399464,1710711180129,-1231.61079967,0.00019178,2]
[319399465,1710711180138,-1231.61079967,0.00019178,2]
[319399466,1710711180148,-1231.61079967,0.00019178,2]
[319399467,1710711180157,-1231.61079967,0.00019178,2]
[319399468,1710711180166,-1231.61079967,0.00019178,2]
[319399469,1710711180176,-1231.61079967,0.00019178,2]
[319399470,1710711180185,-1231.61079967,0.00019178,2]
[319399471,1710711180195,-1231.61079967,0.00019178,2]
[319399472,1710711180205,-1231.61079967,0.00019178,2]
[319399473,1710711180216,-1231.61079967,0.00019178,2]
[319399474,1710711180225,-500.0,0.00019178,2]
[319399475,1710711180235,-603.16286092,0.00019178,2]
[319399476,1710711180244,-1231.61079967,0.00019178,2]
[319399477,1710711180254,-500.0,0.00019178,2]
[319399478,1710711180264,-609.50350428,0.00019178,2]
[319399479,1710711180273,-500.0,0.00019178,2]
[319399480,1710711180283,-500.0,0.00019178,2]
[319399481,1710711180292,-500.0,0.00019178,2]
[319399482,1710711180301,-500.0,0.00019178,2]
[319399483,1710711180310,-500.0,0.00019178,2]
[319399484,1710711180320,-500.0,0.00019178,2]
[319399485,1710711180329,-500.0,0.00019178,2]
[319399486,1710711180338,-500.0,0.00019178,2]
[319399487,1710711180348,-438.95946339,0.00019178,2]
[319399488,1710711180357,-500.0,0.00019178,2]
[319399489,1710711180366,-500.0,0.00019178,2]
[319399490,1710711180375,-500.0,0.00019178,2]
[319399491,1710711180384,-500.0,0.00019178,2]
[319399492,1710711180393,-500.0,0.00019178,2]
[319399493,1710711180402,-500.0,0.00019178,2]
[319399494,1710711180411,-500.0,0.00019178,2]
[319399495,1710711180420,-584.22520247,0.00019178,2]
[319399496,1710711180428,-500.0,0.00019178,2]
[319399497,1710711180437,-500.0,0.00019178,2]
[319399498,1710711180446,-500.0,0.00019178,2]
[319399499,1710711180455,-500.0,0.00019178,2]
[319399500,1710711180464,-500.0,0.00019178,2]
[319399501,1710711180475,-443.68553073,0.00019178,2]
[319399502,1710711180488,-298.35915793,0.00019178,2]
[319399503,1710711180497,-458.01758192,0.00019178,2]
[319399504,1710711180506,-626.86286408,0.00019178,2]
[319399505,1710711180515,-1222.52979837,0.00019178,2]
[319399506,1710711180526,-1222.52979837,0.00019178,2]
[319399507,1710711180535,-1222.52979837,0.00019178,2]
[319399508,1710711180543,-1222.52979837,0.00019178,2]
[319399509,1710711180552,-1222.52979837,0.00019178,2]
[319399510,1710711180562,-1222.52979837,0.00019178,2]
[319399511,1710711180572,-1222.52979837,0.00019178,2]
[319399512,1710711180581,-1222.52979837,0.00019178,2]
[319399513,1710711180590,-1222.52979837,0.00019178,2]
[319399514,1710711180600,-1222.52979837,0.00019178,2]
[319399515,1710711180609,-1222.52979837,0.00019178,2]
[319399516,1710711180707,-1222.52979837,0.00019178,2]
[319399517,1710711180717,-1222.52979837,0.00019178,2]
[319399518,1710711180727,-1222.52979837,0.00019178,2]
[319399519,1710711180737,-1222.52979837,0.00019178,2]
[319399520,1710711180748,-1222.52979837,0.00019178,2]
[319399521,1710711180758,-1222.52979837,0.00019178,2]
[319399522,1710711180766,-1222.52979837,0.00019178,2]
[319399523,1710711180775,-1222.52979837,0.00019178,2]
[319399524,1710711180784,-1222.52979837,0.00019178,2]
[319399525,1710711180793,-1222.52979837,0.00019178,2]
[319399526,1710711180802,-1222.52979837,0.00019178,2]
[319399527,1710711180811,-1222.52979837,0.00019178,2]
[319399528,1710711180821,-1222.52979837,0.00019178,2]
[319399529,1710711180832,-1222.52979837,0.00019178,2]
[319399530,1710711180841,-1222.52979837,0.00019178,2]
[319399531,1710711180851,-1222.52979837,0.00019178,2]
[319399532,1710711180861,-1222.52979837,0.00019178,2]
[319399533,1710711180871,-1222.52979837,0.00019178,2]
[319399534,1710711180881,-1222.52979837,0.00019178,2]
[319399535,1710711180890,-1222.52979851,0.00019178,2]
[319399536,1710711180900,-549.89,0.00019178,2]
[319399537,1710711180909,-549.89,0.00019178,2]
[319399538,1710711180918,-549.89,0.00019178,2]
[319399539,1710711180928,-549.89,0.00019178,2]
[319399540,1710711180937,-549.89,0.00019178,2]
[319399541,1710711180946,-549.89,0.00019178,2]
[319399542,1710711180956,-549.89,0.00019178,2]
[319399543,1710711180965,-549.89,0.00019178,2]
[319399544,1710711180974,-549.89,0.00019178,2]
[319399545,1710711180983,-549.89,0.00019178,2]
[319399546,1710711180992,-549.89,0.00019178,2]
[319399547,1710711181001,-549.89,0.00019178,2]
[319399548,1710711181010,-549.89,0.00019178,2]
[319399549,1710711181019,-549.89,0.00019178,2]
[319399550,1710711181028,-549.89,0.00019178,2]
[319399551,1710711181037,-549.89,0.00019178,2]
[319399552,1710711181046,-549.89,0.00019178,2]
[319399553,1710711181055,-549.89,0.00019178,2]
[319399554,1710711181064,-549.89,0.00019178,2]
[319399555,1710711181074,-549.89,0.00019178,2]
[319399556,1710711181083,-549.89,0.00019178,2]
[319399557,1710711181092,-549.89,0.00019178,2]
[319399558,1710711181102,-549.89,0.00019178,2]
[319399559,1710711181111,-549.9495838,0.00019178,2]
[319399560,1710711181120,-608.99499225,0.00019178,2]
[319399561,1710711181129,-414.99284607,0.00019178,2]
[319399562,1710711181138,-363.3166408,0.00019178,2]
[319399563,1710711181149,-200.0,0.00019178,2]
[319399564,1710711181158,-200.0,0.00019178,2]
[319399565,1710711181167,-200.0,0.00019178,2]
[319399566,1710711181177,-200.0,0.00019178,2]
[319399567,1710711181187,-200.0,0.00019178,2]
[319399568,1710711181196,-200.0,0.00019178,2]
[319399569,1710711181205,-158.0,0.00019178,2]
[319399570,1710711181215,-55000.0,0.00019178,2]
[319399571,1710711181224,-150.0,0.00019178,2]
[319399572,1710711181233,-424.629798,0.00019178,2]
[319399573,1710711181242,-3660.41,0.0001918,2]
[319399574,1710711181251,-3660.41,0.0001918,2]
[319399575,1710711181260,-3660.41,0.0001918,2]
[319399576,1710711181269,-3660.41,0.0001918,2]
[319399577,1710711181278,-3660.41,0.0001918,2]
[319399578,1710711181287,-3660.41,0.0001918,2]
[319399579,1710711181296,-3660.41,0.0001918,2]
[319399580,1710711181305,-3660.41,0.0001918,2]
[319399581,1710711181314,-3660.41,0.0001918,2]
[319399582,1710711181324,-3660.41,0.0001918,2]
[319399583,1710711181333,-155.33791431,0.00019184,2]
[319399584,1710711181342,-2000.0,0.00019195,2]
[319399585,1710711181351,-200.0,0.00019195,2]
[319399586,1710711181360,-2000.0,0.00019195,2]
[319399587,1710711181369,-200.0,0.00019195,2]
[319399588,1710711181378,-2000.0,0.00019195,2]
[319399589,1710711181388,-200.0,0.00019195,2]
[319399590,1710711181397,-2000.0,0.00019195,2]
[319399591,1710711181405,-200.0,0.00019195,2]
[319399592,1710711181415,-150.0,0.00019199,2]
[319399593,1710711181424,-13267.63637458,0.000192,2]
[319399594,1710711181433,-414.91,0.00019205,2]
[319399595,1710711181442,-363.12,0.00019205,2]
[319399596,1710711181451,-516.7,0.00019205,2]
[319399597,1710711181459,-208.02,0.00019205,2]
[319399598,1710711181468,-150.0,0.00019205,2]
[319399599,1710711181477,-150.0,0.00019205,2]
[319399600,1710711181490,-516.7,0.00019205,2]
[319399601,1710711181499,-469.91,0.00019205,2]
[319399602,1710711181508,-150.0,0.00019205,2]
[319399603,1710711181518,-414.91,0.00019205,2]
[319399604,1710711181526,-150.0,0.00019205,2]
[319399605,1710711181537,-414.91,0.00019205,2]
[319399606,1710711181546,-414.91,0.00019205,2]
[319399607,1710711181555,-1400.0,0.00019255,2]
[319399608,1710711181565,-167.68,0.00019264,2]
[319399609,1710711181575,-180.0,0.00019288,2]
[319399610,1710711181584,-2500.0,0.000193,2]
[319399611,1710711181593,-287.70140034,0.00019357,2]
[319399612,1710711181602,-2000.0,0.00019386,2]
[319399613,1710711181611,-200.0,0.00019386,2]
[319399614,1710711181621,-2000.0,0.00019386,2]
[319399615,1710711181630,-200.0,0.00019386,2]
[319399616,1710711181640,-2000.0,0.00019386,2]
[319399617,1710711181649,-200.0,0.00019386,2]
[319399618,1710711181660,-155.33791431,0.00019386,2]
[319399619,1710711181670,-2000.0,0.00019386,2]
[319399620,1710711181679,-200.0,0.00019386,2]
[319399621,1710711181687,-45791.83222012,0.0001944,2]
[319399622,1710711181696,-697.6065012,0.000195,2]
[319399623,1710711181705,-360.0,0.00019512,2]
[319399624,1710711181714,-191.89,0.00019553,10]
[319399625,1710711181723,-233.0,0.0001956,15]
[319399626,1710711181732,-233.0,0.0001956,15]
[319399627,1710711181741,-154.42,0.0001957,15]
[319399628,1710711181749,-152.16,0.0001957,15]
[319399629,1710711181759,-233.0,0.0001957,15]
[319399630,1710711181768,-233.0,0.0001957,15]
[319399631,1710711181779,-233.0,0.0001957,15]
[319399632,1710711181787,-239.0,0.0001957,15]
[319399633,1710711181798,-155.33791431,0.00019577,2]
[319399634,1710711181807,-150.5,0.0001958,15]
[319399635,1710711181817,-150.5,0.0001958,15]
[319399636,1710711181828,-153.31,0.0001958,15]
[319399637,1710711181838,-152.08,0.0001958,15]
[319399638,1710711181848,-151.22,0.0001958,15]
[319399639,1710711181857,-150.76,0.0001958,15]
[319399640,1710711181868,-152.35,0.0001958,15]
[319399641,1710711181879,-233.0,0.0001958,15]
[319399642,1710711181889,-233.0,0.0001958,15]
[319399643,1710711181899,-233.0,0.0001958,15]
[319399644,1710711181909,-233.0,0.0001958,15]
[319399645,1710711181919,-287.70140034,0.0001958,2]
[319399646,1710711181929,-155.35,0.0001959,15]
[319399647,1710711181939,-150.5,0.0001959,15]
[319399648,1710711181950,-150.5,0.0001959,15]
[319399649,1710711181960,-172.0,0.0001963,9]
[319399650,1710711181969,-150.0,0.00019683,2]
[319399651,1710711181978,-155.33791431,0.00019694,2]
[319399652,1710711181987,-2958.11,0.00019726,2]
[319399653,1710711181996,-1500.0,0.000198,2]
[319399654,1710711182005,-9520.51579,0.000198,2]
[319399655,1710711182014,-151.30766298,0.00019841,2]
[319399656,1710711182023,-823.2472272,0.0001991,2]
[319399657,1710711182033,-2958.11,0.00019974,2]
[319399658,1710711182042,-405.65571563,0.0001998,2]
[319399659,1710711182052,-2500.0,0.0002,2]
[319399660,1710711182062,-155.0,0.0002,2]
[319399661,1710711182072,-286.63395729,0.0002,2]
[319399662,1710711182081,-1246.7636923,0.0002,2]
[319399663,1710711182091,-3547.85120178,0.0002,2]
[319399664,1710711182100,-18774.23774994,0.0002,2]
[319399665,1710711182109,-194.09771204,0.0002,2]
[319399666,1710711182118,-155.0,0.0002,2]
[319399667,1710711182128,-2613.10402099,0.0002,2]
[319399668,1710711182137,-33417.76203518,0.0002,2]
[319399669,1710711182146,-1754.23693487,0.0002,2]
[319399670,1710711182155,-27502.23921407,0.0002,2]
[319399671,1710711182164,-172.09730562,0.0002,2]
[319399672,1710711182174,-157.38123546,0.0002,2]
[319399673,1710711182183,-3039.91368398,0.0002,2]
[319399674,1710711182192,-51062.75876581,0.0002,2]
[319399675,1710711182201,-1700.0,0.0002,10]
[319399676,1710711182210,-1353.49600197,0.0002,2]
[319399677,1710711182219,-1353.49600197,0.0002,2]
[319399678,1710711182228,-1353.49600197,0.0002,2]
[319399679,1710711182237,-2683.4081342,0.0002,2]
[319399680,1710711182246,-2683.4081342,0.0002,2]
[319399681,1710711182255,-2683.4081342,0.0002,2]
[319399682,1710711182264,-102052.63793347,0.0002,2]
[319399683,1710711182274,-102052.63793347,0.0002,2]
[319399684,1710711182283,-102052.63793347,0.0002,2]
[319399685,1710711182293,-102052.63793347,0.0002,2]
[319399686,1710711182303,-102052.63793347,0.0002,2]
[319399687,1710711182314,-150.0,0.0002,2]
[319399688,1710711182324,-400.0,0.0002,2]
[319399689,1710711182334,-424.629798,0.0002,2]
[319399690,1710711182343,-1184.35806309,0.00020028,2]
[319399691,1710711182353,-832.32,0.00020037,2]
[319399692,1710711182363,-433.98,0.00020039,2]
[319399693,1710711182372,-220.0,0.000201,2]
[319399694,1710711182382,-155.33791431,0.00020107,2]
[319399695,1710711182392,-154.5275948,0.0002015,2]
[319399696,1710711182405,-150.0,0.00020187,2]
[319399697,1710711182416,-800.0,0.00020199,2]
[319399698,1710711182425,-357.0,0.00020199,2]
[319399699,1710711182434,-150.0,0.00020199,2]
[319399700,1710711182443,-1136.0,0.00020199,2]
[319399701,1710711182453,-3000.0,0.00020199,2]
[319399702,1710711182461,-2419.0,0.00020199,2]
[319399703,1710711182470,-150.0,0.00020199,2]
[319399704,1710711182479,-1458.0,0.00020199,2]
[319399705,1710711182493,-213.0,0.00020199,2]
[319399706,1710711182502,-1623.0,0.00020199,2]
[319399707,1710711182511,-42878.0,0.00020199,2]
[319399708,1710711182520,-5668.0,0.00020199,2]
[319399709,1710711182530,-4762.0,0.00020199,2]
[319399710,1710711182539,-179.517,0.00020199,2]
[319399711,1710711182548,-2428.0,0.00020199,2]
[319399712,1710711182558,-457.0,0.00020199,2]
[319399713,1710711182575,-1227.0,0.00020199,2]
[319399714,1710711182586,-1044.0,0.00020199,2]
[319399715,1710711182596,-536.0,0.00020199,2]
[319399716,1710711182604,-2958.11,0.00020222,2]
[319399717,1710711182614,-150.0,0.00020236,2]
[319399718,1710711182623,-154.06087022,0.00020253,2]
[319399719,1710711182633,-1500.0,0.000203,2]
[319399720,1710711182642,-175.58196687,0.00020398,2]
[319399721,1710711182652,-2958.11,0.0002047,2]
[319399722,1710711182662,-151.30766298,0.00020481,2]
[319399723,1710711182671,-200.0,0.00020526,2]
[319399724,1710711182681,-800.0,0.00020526,2]
[319399725,1710711182690,-200.0,0.00020526,2]
[319399726,1710711182700,-500.0,0.00020526,2]
[319399727,1710711182710,-200.0,0.00020526,2]
[319399728,1710711182719,-170.17,0.00020548,2]
[319399729,1710711182729,-1088.26123497,0.0002058,2]
[319399730,1710711182739,-210.0,0.00020669,2]
[319399731,1710711182749,-150.0,0.00020692,2]
[319399732,1710711182758,-2958.11,0.00020718,2]
[319399733,1710711182768,-1500.0,0.000208,2]
[319399734,1710711182777,-155.33791431,0.00020803,2]
[319399735,1710711182786,-424.629798,0.00020822,2]
[319399736,1710711182796,-287.70140034,0.00020895,2]
[319399737,1710711182806,-4348.66928,0.000209,2]
[319399738,1710711182815,-3000.0,0.0002094,2]
[319399739,1710711182825,-2958.11,0.00020966,2]
[319399740,1710711182835,-700.0,0.0002097,2]
[319399741,1710711182844,-155.0,0.00021,2]
[319399742,1710711182853,-1700.0,0.00021,3]
[319399743,1710711182865,-500.0,0.00021,2]
[319399744,1710711182874,-90159.21593929,0.00021028,2]
[319399745,1710711182883,-1396.04165275,0.00021028,2]
[319399746,1710711182893,-9003.19426017,0.00021028,2]
[319399747,1710711182902,-300.0,0.00021028,2]
[319399748,1710711182912,-1231.49570054,0.00021028,4]
[319399749,1710711182921,-941.55574104,0.00021028,4]
[319399750,1710711182930,-167355.1972005,0.00021028,2]
[319399751,1710711182940,-16276.90286524,0.00021028,2]
[319399752,1710711182949,-118096.24267639,0.00021028,2]
[319399753,1710711182958,-1210.0,0.00021028,2]
[319399754,1710711182968,-2134.6901878,0.00021028,2]
[319399755,1710711182977,-336.76684068,0.00021028,2]
[319399756,1710711182987,-8561.95791479,0.00021028,2]
[319399757,1710711182997,-1000.498499,0.00021028,2]
[319399758,1710711183008,-1371.50656811,0.00021028,2]
[319399759,1710711183018,-66607.63808075,0.00021028,2]
[319399760,1710711183029,-100000.0,0.00021028,2]
[319399761,1710711183039,-3610.25986643,0.00021028,2]
[319399762,1710711183049,-8000.0,0.00021028,3]
[319399763,1710711183058,-300.0,0.00021028,4]
[319399764,1710711183068,-300.0,0.00021028,5]
[319399765,1710711183077,-300.0,0.00021028,6]
[319399766,1710711183087,-300.0,0.00021028,7]
[319399767,1710711183097,-300.0,0.00021028,8]
[319399768,1710711183108,-300.0,0.00021028,9]
[319399769,1710711183118,-54189.29293173,0.00021028,2]
[319399770,1710711183128,-22754.60342765,0.00021028,2]
[319399771,1710711183138,-1000.0,0.00021028,30]
[319399772,1710711183148,-1007.73272371,0.00021028,30]
[319399773,1710711183158,-1000.0,0.00021028,30]
[319399774,1710711183168,-1000.0,0.00021028,30]
[319399775,1710711183178,-1000.0,0.00021028,30]
[319399776,1710711183187,-1014.45330204,0.00021028,30]
[319399777,1710711183197,-6445.31723452,0.00021028,30]
[319399778,1710711183208,-208.05026,0.00021028,2]
[319399779,1710711183218,-150.0,0.00021028,30]
[319399780,1710711183229,-236.36,0.00021028,30]
[319399781,1710711183239,-1000.0,0.00021028,30]
[319399782,1710711183250,-1000.0,0.00021028,60]
[319399783,1710711183260,-1000.0,0.00021028,120]
[319399784,1710711183270,-1000.0,0.00021028,30]
[319399785,1710711183281,-317.08115994,0.00021028,60]
[319399786,1710711183292,-1000.0,0.00021028,30]
[319399787,1710711183302,-1000.0,0.00021028,60]
[319399788,1710711183313,-1000.0,0.00021028,60]
[319399789,1710711183323,-1000.0,0.00021028,30]
[319399790,1710711183333,-1000.0,0.00021028,30]
[319399791,1710711183345,-1000.0,0.00021028,30]
[319399792,1710711183355,-1000.0,0.00021028,120]
[319399793,1710711183365,-1000.0,0.00021028,30]
[319399794,1710711183374,-1000.0,0.00021028,60]
[319399795,1710711183385,-1000.0,0.00021028,60]
[319399796,1710711183396,-1000.0,0.00021028,60]
[319399797,1710711183405,-1000.0,0.00021028,60]
[319399798,1710711183416,-1000.0,0.00021028,60]
[319399799,1710711183427,-1000.0,0.00021028,60]
[319399800,1710711183438,-1000.0,0.00021028,30]
[319399801,1710711183449,-1000.0,0.00021028,30]
[319399802,1710711183459,-1000.0,0.00021028,30]
[319399803,1710711183468,-1000.0,0.00021028,60]
[319399804,1710711183478,-1000.0,0.00021028,60]
[319399805,1710711183492,-1000.0,0.00021028,60]
[319399806,1710711183501,-1000.0,0.00021028,30]
[319399807,1710711183510,-1000.0,0.00021028,30]
[319399808,1710711183519,-1000.0,0.00021028,30]
[319399809,1710711183529,-1000.0,0.00021028,30]
[319399810,1710711183538,-1000.0,0.00021028,30]
[319399811,1710711183547,-1000.0,0.00021028,30]
[319399812,1710711183556,-1000.0,0.00021028,30]
[319399813,1710711183566,-1000.0,0.00021028,30]
[319399814,1710711183577,-1000.0,0.00021028,30]
[319399815,1710711183586,-1000.0,0.00021028,30]
[319399816,1710711183595,-1000.0,0.00021028,30]
[319399817,1710711183604,-1000.0,0.00021028,30]
[319399818,1710711183613,-1000.0,0.00021028,30]
[319399819,1710711183622,-1000.0,0.00021028,30]
[319399820,1710711183632,-1000.0,0.00021028,30]
[319399821,1710711183642,-1000.0,0.00021028,30]
[319399822,1710711183651,-1000.0,0.00021028,30]
[319399823,1710711183660,-1000.0,0.00021028,30]
[319399824,1710711183670,-1000.0,0.00021028,30]
[319399825,1710711183680,-1000.0,0.00021028,30]
[319399826,1710711183690,-1000.0,0.00021028,30]
[319399827,1710711183699,-1000.0,0.00021028,30]
[319399828,1710711183709,-1000.0,0.00021028,30]
[319399829,1710711183719,-1000.0,0.00021028,30]
[319399830,1710711183729,-1000.0,0.00021028,30]